bitfinex-derivatives/quotes_BTCF0:USTF0_20241128
["timestamp","ask_amount","ask_price","bid_price","bid_amount"]
[1732801847304,0.052254,95643.0,95639.0,0.052255]
[1732801847499,0.14613471,95641.0,95639.0,0.052255]
[1732801847701,0.052255,95640.0,95639.0,0.052255]
[1732801848003,0.09387971,95641.0,95626.0,0.24820089]
[1732801848201,0.052255,95641.0,95640.0,0.052255]
[1732801848503,0.3608,95642.0,95640.0,0.052255]
[1732801848705,0.09387971,95648.0,95647.0,0.052252]
[1732801848906,0.3608,95650.0,95649.0,0.05225]
[1732801850102,0.41305,95650.0,95649.0,0.05225]
[1732801850498,0.41405,95650.0,95649.0,0.05225]
[1732801851001,0.3618,95650.0,95649.0,0.05225]
[1732801851922,0.3618,95650.0,95649.0,0.05325]
[1732801852708,0.41405,95650.0,95649.0,0.05325]
[1732801852907,0.41405,95650.0,95649.0,0.001]
[1732801853205,0.00064,95660.0,95659.0,0.052245]
[1732801853408,0.3608,95667.0,95650.0,0.12588825]
[1732801853595,0.052238,95672.0,95651.0,0.052249]
[1732801853596,0.05224,95669.0,95651.0,0.052249]
[1732801853797,0.05224,95668.0,95652.0,0.00980186]
[1732801854003,0.05224,95668.0,95666.0,0.052241]
[1732801854708,0.05224,95668.0,95667.0,0.052241]
[1732801855408,0.05624,95668.0,95667.0,0.052241]
[1732801856301,0.003,95668.0,95667.0,0.052241]
[1732801856604,0.004,95668.0,95667.0,0.052241]
[1732801857305,0.3608,95675.0,95667.0,0.06530889]
[1732801857510,0.3608,95675.0,95674.0,0.052237]
[1732801857809,0.052234,95680.0,95679.0,0.052234]
[1732801858009,0.413034,95680.0,95679.0,0.052234]
[1732801858700,0.3608,95680.0,95668.0,0.0301]
[1732801858902,0.052239,95672.0,95671.0,0.052238]
[1732801859211,0.413039,95672.0,95671.0,0.052238]
[1732801860102,0.3608,95672.0,95671.0,0.052238]
[1732801860301,0.3638,95680.0,95671.0,0.052238]
[1732801860302,0.3638,95680.0,95679.0,0.052234]
[1732801861512,0.12517295,95697.0,95679.0,0.85136]
[1732801861810,0.00013221,95699.0,95698.0,0.052224]
[1732801862309,0.36093221,95699.0,95698.0,0.052224]
[1732801862616,0.00013221,95699.0,95698.0,0.052224]
[1732801864007,0.00013221,95699.0,95698.0,0.053224]
[1732801865407,0.1,95700.0,95699.0,0.052223]
[1732801866312,0.1,95700.0,95699.0,0.42608665]
[1732801866811,0.1,95700.0,95699.0,0.43131178]
[1732801867213,0.1,95700.0,95699.0,0.42382052]
[1732801867433,0.06734153,95700.0,95699.0,0.43231171]
[1732801867715,0.06734153,95700.0,95699.0,0.41728884]
[1732801867914,0.06734153,95700.0,95699.0,0.42708641]
[1732801868503,0.06734153,95700.0,95699.0,0.41728884]
[1732801869116,1e-08,95700.0,95699.0,0.41728884]
[1732801869811,1e-08,95700.0,95699.0,0.42708622]
[1732801870115,0.052213,95717.0,95716.0,0.052214]
[1732801870413,0.052213,95717.0,95700.0,0.052222]
[1732801870414,0.3608,95718.0,95717.0,0.052213]
[1732801872215,0.3608,95718.0,95717.0,0.053213]
[1732801873619,0.3608,95718.0,95717.0,0.054213]
[1732801873824,0.3608,95718.0,95717.0,0.048213]
[1732801875812,9.143e-05,95719.0,95717.0,0.002]
[1732801876012,9.143e-05,95719.0,95718.0,0.052213]
[1732801877220,9.143e-05,95719.0,95718.0,0.053213]
[1732801878620,9.143e-05,95719.0,95718.0,0.054213]
[1732801880820,0.05230343,95719.0,95718.0,0.054213]
[1732801881022,9.143e-05,95719.0,95718.0,0.054213]
[1732801882928,0.05230343,95719.0,95718.0,0.002]
[1732801883721,0.05230343,95719.0,95718.0,0.001]
[1732801883922,0.05230343,95719.0,95718.0,0.002]
[1732801885327,0.05230343,95719.0,95718.0,0.001]
[1732801885524,0.05230343,95719.0,95718.0,0.002]
[1732801887220,0.17662142,95719.0,95718.0,0.002]
[1732801887725,0.35206142,95719.0,95718.0,0.002]
[1732801888120,0.22774343,95719.0,95718.0,0.002]
[1732801891232,0.20873353,95719.0,95718.0,0.054213]
[1732801891423,0.05230343,95719.0,95718.0,0.054213]
[1732801892120,9.143e-05,95719.0,95718.0,0.054213]
[1732801892418,0.20878535,95719.0,95718.0,0.054213]
[1732801892618,0.05230343,95719.0,95718.0,0.054213]
[1732801893035,0.20880278,95719.0,95718.0,0.054213]
[1732801893228,0.15659078,95719.0,95718.0,0.054213]
[1732801893625,9.143e-05,95719.0,95718.0,0.054213]
[1732801894224,0.20881842,95719.0,95718.0,0.054213]
[1732801894431,0.05230343,95719.0,95718.0,0.002]
[1732801895227,0.20882917,95719.0,95718.0,0.002]
[1732801895433,0.05230343,95719.0,95718.0,0.002]
[1732801895742,0.20882917,95719.0,95718.0,0.002]
[1732801896032,0.05230343,95719.0,95718.0,0.002]
[1732801904339,0.20881081,95719.0,95718.0,0.002]
[1732801904640,9.143e-05,95719.0,95718.0,0.054213]
[1732801904844,0.15650738,95721.0,95718.0,0.054213]
[1732801904845,0.12520164,95724.0,95718.0,0.002]
[1732801905141,0.0107484,95726.0,95725.0,0.052209]
[1732801905443,0.3608,95728.0,95727.0,0.052208]
[1732801906735,0.3608,95728.0,95727.0,0.053208]
[1732801907246,0.37117946,95728.0,95727.0,0.053208]
[1732801907637,0.37117946,95728.0,95727.0,0.054208]
[1732801909741,0.01037946,95728.0,95727.0,0.367608]
[1732801910040,0.00407746,95737.0,95736.0,0.052203]
[1732801910246,0.05627946,95737.0,95736.0,0.052203]
[1732801910740,0.00407746,95737.0,95736.0,0.052203]
[1732801910945,0.1292791,95737.0,95736.0,0.052203]
[1732801911132,0.00407746,95737.0,95736.0,0.052203]
[1732801911331,0.0148113,95737.0,95736.0,0.052203]
[1732801911536,0.12908955,95737.0,95736.0,0.052203]
[1732801912441,0.00407746,95737.0,95736.0,0.053203]
[1732801913134,0.00407746,95737.0,95736.0,0.054203]
[1732801916350,0.01466513,95737.0,95736.0,0.054203]
[1732801916647,0.00407746,95737.0,95736.0,0.054203]
[1732801920050,0.05627946,95737.0,95736.0,0.054203]
[1732801920252,0.06657239,95737.0,95736.0,0.002]
[1732801920956,0.19158448,95737.0,95736.0,0.002]
[1732801921445,0.06657239,95737.0,95736.0,0.002]
[1732801922553,0.19158448,95737.0,95736.0,0.002]
[1732801922755,0.06657239,95737.0,95736.0,0.002]
[1732801924352,0.23585239,95737.0,95736.0,0.002]
[1732801925444,0.54921239,95737.0,95727.0,0.01051038]
[1732801925747,0.413007,95728.0,95727.0,0.01051038]
[1732801927042,0.53790193,95728.0,95727.0,0.01051038]
[1732801927456,0.413007,95728.0,95727.0,0.01051038]
[1732801927641,0.53792911,95728.0,95727.0,0.01151038]
[1732801928753,0.414007,95728.0,95727.0,0.01151038]
[1732801930746,0.414007,95728.0,95727.0,0.00110384]
[1732801931553,0.57051438,95728.0,95727.0,0.00110384]
[1732801931744,0.57051438,95728.0,95711.0,0.01032111]
[1732801931745,0.12588825,95726.0,95711.0,0.01032111]
[1732801931949,0.3608,95712.0,95707.0,0.001567]
[1732801932151,0.052217,95710.0,95707.0,0.001567]
[1732801932453,0.052218,95709.0,95707.0,0.053785]
[1732801932653,0.052218,95709.0,95708.0,0.00011203]
[1732801933159,0.17723996,95709.0,95708.0,0.00011203]
[1732801933361,0.052218,95709.0,95708.0,0.00011203]
[1732801934353,0.052218,95709.0,95708.0,0.00111203]
[1732801934756,0.12502196,95714.0,95708.0,0.00111203]
[1732801935060,0.12502196,95714.0,95713.0,0.052216]
[1732801935251,0.29434196,95715.0,95713.0,0.052216]
[1732801935454,0.052215,95714.0,95713.0,0.052216]
[1732801937054,0.053215,95714.0,95713.0,0.052216]
[1732801937257,0.053215,95714.0,95708.0,0.00011203]
[1732801937258,0.001,95714.0,95708.0,0.05233003]
[1732801937459,0.052218,95709.0,95708.0,0.05233003]
[1732801937655,0.3608,95712.0,95708.0,0.00011203]
[1732801937964,0.3608,95712.0,95711.0,0.052217]
[1732801938553,0.413016,95712.0,95711.0,0.052217]
[1732801938754,0.3608,95712.0,95711.0,0.052217]
[1732801938963,0.413016,95712.0,95711.0,0.052217]
[1732801939150,0.052218,95709.0,95708.0,0.00011203]
[1732801940461,0.3618,95712.0,95708.0,0.00011203]
[1732801940662,0.3618,95712.0,95711.0,0.052217]
[1732801940863,0.3608,95712.0,95708.0,0.00011203]
[1732801941163,0.053218,95709.0,95708.0,0.00011203]
[1732801941362,0.001,95709.0,95708.0,0.00011203]
[1732801941557,0.001,95709.0,95708.0,0.05233003]
[1732801942566,0.3608,95712.0,95708.0,0.00011203]
[1732801942860,0.48682196,95712.0,95708.0,0.00011203]
[1732801943061,0.3618,95712.0,95708.0,0.00011203]
[1732801943264,0.3618,95712.0,95711.0,0.052217]
[1732801943463,0.3618,95712.0,95708.0,0.00011203]
[1732801943656,0.052218,95709.0,95708.0,0.00011203]
[1732801944153,0.053218,95709.0,95708.0,0.00011203]
[1732801945058,0.17823996,95709.0,95708.0,0.00011203]
[1732801945658,0.053218,95709.0,95708.0,0.00011203]
[1732801946162,0.1782044,95709.0,95708.0,0.00011203]
[1732801946361,0.052218,95709.0,95708.0,0.00011203]
[1732801946563,0.053218,95709.0,95708.0,0.00011203]
[1732801946762,0.1782222,95709.0,95708.0,0.00011203]
[1732801947064,0.001,95709.0,95708.0,0.05233003]
[1732801954768,0.053218,95709.0,95708.0,0.00011203]
[1732801955273,0.20949545,95709.0,95708.0,0.00011203]
[1732801955472,0.20949545,95709.0,95691.0,0.0314]
[1732801955473,0.052225,95696.0,95691.0,0.0314]
[1732801955677,0.052226,95695.0,95692.0,0.052227]
[1732801955867,0.052226,95695.0,95691.0,0.04163045]
[1732801956175,0.052227,95692.0,95691.0,0.0314]
[1732801956481,0.052228,95690.0,95689.0,9.261e-05]
[1732801958770,0.3608,95692.0,95690.0,0.052228]
[1732801958967,0.052228,95691.0,95689.0,0.05232161]
[1732801959171,0.052228,95691.0,95689.0,0.00509261]
[1732801959370,0.17732837,95691.0,95690.0,0.052228]
[1732801959674,0.17732837,95691.0,95689.0,0.00509261]
[1732801959675,0.052228,95691.0,95689.0,0.00609261]
[1732801959880,0.052228,95690.0,95689.0,0.00609261]
[1732801960180,0.052228,95690.0,95689.0,0.00109261]
[1732801960373,0.052228,95690.0,95689.0,0.00609261]
[1732801960679,0.052228,95690.0,95689.0,0.00509261]
[1732801961375,0.083428,95690.0,95689.0,0.00509261]
[1732801961582,0.083428,95690.0,95689.0,0.00609261]
[1732801962172,0.083428,95690.0,95689.0,0.00109261]
[1732801962367,0.083428,95690.0,95689.0,0.00609261]
[1732801965076,0.052228,95690.0,95689.0,0.00609261]
[1732801965378,0.17720177,95690.0,95689.0,0.00609261]
[1732801965974,0.12497377,95690.0,95689.0,0.05832161]
[1732801966179,0.12497377,95691.0,95690.0,0.052228]
[1732801966384,0.53800077,95692.0,95690.0,0.085328]
[1732801966581,0.00840117,95691.0,95690.0,0.085328]
[1732801966783,0.00840023,95691.0,95690.0,0.085328]
[1732801967277,0.00840023,95691.0,95690.0,0.09559893]
[1732801967586,0.3648,95700.0,95699.0,0.052223]
[1732801968888,0.3648,95700.0,95690.0,0.04837093]
[1732801969182,0.052223,95699.0,95691.0,0.052228]
[1732801969381,0.052224,95698.0,95695.0,0.052225]
[1732801969680,0.052224,95698.0,95690.0,0.04837093]
[1732801969681,0.3648,95700.0,95690.0,0.04837093]
[1732801969877,0.3658,95700.0,95690.0,0.01027093]
[1732801970078,0.3658,95700.0,95689.0,9.261e-05]
[1732801970079,0.3658,95700.0,95698.0,0.052223]
[1732801970277,0.3658,95700.0,95689.0,9.261e-05]
[1732801970487,0.052223,95699.0,95696.0,0.052224]
[1732801970686,0.3648,95700.0,95696.0,0.052224]
[1732801970883,0.052224,95697.0,95696.0,0.052224]
[1732801972685,0.052224,95697.0,95696.0,0.053224]
[1732801972877,0.052224,95697.0,95696.0,0.001]
[1732801974785,0.052224,95697.0,95696.0,0.053225]
[1732801975776,0.49040625,95700.0,95699.0,0.052223]
[1732801975987,0.3648,95700.0,95699.0,0.052223]
[1732801977085,0.3658,95700.0,95699.0,0.052223]
[1732801977982,0.418023,95700.0,95699.0,0.052223]
[1732801979184,0.3658,95700.0,95699.0,0.052223]
[1732801979386,0.052224,95698.0,95689.0,9.261e-05]
[1732801979586,0.13364836,95697.0,95696.0,0.052225]
[1732801979791,0.00859665,95697.0,95696.0,0.052225]
[1732801980489,0.00856492,95697.0,95696.0,0.37613618]
[1732801980681,0.004,95700.0,95699.0,0.052223]
[1732801980883,0.00156792,95710.0,95709.0,0.052218]
[1732801981589,0.00156792,95710.0,95709.0,0.06201479]
[1732801982588,0.00156792,95710.0,95709.0,0.052218]
[1732801982994,0.3608,95720.0,95708.0,0.0332]
[1732801983184,0.413012,95720.0,95719.0,0.052212]
[1732801983582,0.3608,95720.0,95719.0,0.052212]
[1732801984791,0.3608,95720.0,95719.0,0.053212]
[1732801985789,0.413012,95720.0,95719.0,0.053212]
[1732801986093,0.414012,95720.0,95719.0,0.053212]
[1732801989289,0.414012,95720.0,95719.0,0.001]
[1732801989593,0.895052,95720.0,95719.0,0.001]
[1732801989794,0.052217,95711.0,95710.0,0.01032854]
[1732801989996,0.65532825,95720.0,95707.0,0.052219]
[1732801990199,0.052218,95708.0,95707.0,0.052219]
[1732801990499,0.05222,95705.0,95702.0,0.052221]
[1732801990889,0.48668825,95712.0,95702.0,0.052221]
[1732801991095,0.052221,95703.0,95702.0,0.052221]
[1732801991293,0.064,95711.0,95698.0,0.01032749]
[1732801991495,0.052223,95699.0,95691.0,0.18853873]
[1732801991798,0.052223,95699.0,95698.0,0.052224]
[1732801992001,0.413021,95704.0,95691.0,0.17810703]
[1732801992393,0.413021,95704.0,95702.0,0.052221]
[1732801992689,0.413021,95704.0,95691.0,0.17810703]
[1732801992690,0.413021,95704.0,95703.0,0.052221]
[1732801992889,0.413021,95704.0,95691.0,0.17810703]
[1732801992890,0.3608,95704.0,95691.0,0.17810703]
[1732801993287,0.3608,95704.0,95692.0,0.06202553]
[1732801993590,0.052221,95703.0,95693.0,0.00979853]
[1732801993791,0.3608,95704.0,95703.0,0.052221]
[1732801993996,0.12505171,95708.0,95691.0,0.18210703]
[1732801993997,0.12505171,95708.0,95697.0,0.3608]
[1732801994292,0.12505171,95710.0,95698.0,0.116924]
[1732801994514,0.15705171,95711.0,95698.0,0.116924]
[1732801994791,0.032,95711.0,95710.0,0.052217]
[1732801994992,0.09269166,95711.0,95710.0,0.052217]
[1732801995198,0.09269166,95711.0,95705.0,0.05222]
[1732801995199,0.05222,95706.0,95705.0,0.05222]
[1732801995399,0.06069466,95706.0,95705.0,0.05222]
[1732801996199,0.36927466,95706.0,95691.0,0.16764]
[1732801996395,0.052222,95702.0,95697.0,0.052224]
[1732801996599,0.06069666,95701.0,95697.0,0.052224]
[1732801996788,0.00847466,95700.0,95696.0,0.052224]
[1732801997096,0.00847466,95699.0,95697.0,0.052224]
[1732801997296,0.00839469,95698.0,95697.0,0.052224]
[1732801998297,0.00839469,95698.0,95697.0,0.053224]
[1732801999306,0.052223,95700.0,95697.0,0.053224]
[1732801999599,0.413024,95698.0,95697.0,0.001]
[1732801999904,0.42246294,95698.0,95697.0,0.001]
[1732802000093,0.052228,95690.0,95689.0,9.261e-05]
[1732802000406,0.58906694,95690.0,95689.0,9.261e-05]
[1732802000697,0.58906694,95690.0,95689.0,0.05232161]
[1732802000698,0.00843894,95690.0,95689.0,0.05232161]
[1732802000903,0.00843894,95690.0,95689.0,0.05223701]
[1732802001602,0.00843894,95690.0,95689.0,0.05323701]
[1732802001900,0.00843894,95690.0,95689.0,0.05823701]
[1732802002393,0.02271596,95690.0,95689.0,0.05823701]
[1732802002598,0.00843894,95690.0,95689.0,0.24358836]
[1732802003503,0.00843894,95690.0,95689.0,0.05823701]
[1732802005097,0.06066694,95690.0,95689.0,0.05823701]
[1732802005301,0.07494396,95690.0,95689.0,0.05823701]
[1732802006093,0.0760253,95690.0,95689.0,0.05823701]
[1732802006307,0.0237973,95690.0,95689.0,0.05823701]
[1732802007102,0.0237973,95690.0,95689.0,0.24409778]
[1732802007403,0.0237973,95690.0,95689.0,0.05823701]
[1732802007899,0.00915281,95690.0,95689.0,0.05823701]
[1732802009401,0.00868283,95690.0,95689.0,0.05823701]
[1732802009902,0.0751846,95690.0,95689.0,0.05823701]
[1732802011501,0.0751846,95690.0,95689.0,0.00600801]
[1732802012509,0.26420284,95690.0,95689.0,0.00600801]
[1732802012806,0.26517379,95690.0,95689.0,0.00600801]
[1732802013308,0.26519782,95690.0,95689.0,0.00600801]
[1732802013606,0.43283782,95690.0,95689.0,0.00600801]
[1732802013804,0.30779555,95690.0,95689.0,0.00600801]
[1732802014510,0.66859555,95690.0,95689.0,0.00600801]
[1732802015306,0.79363983,95690.0,95689.0,0.00600801]
[1732802015502,0.66859555,95690.0,95689.0,0.00600801]
[1732802016009,0.052232,95682.0,95681.0,0.01038327]
[1732802016216,0.0237697,95682.0,95674.0,0.3608]
[1732802016510,0.052236,95675.0,95674.0,0.01025612]
[1732802016812,0.0237697,95675.0,95669.0,0.052239]
[1732802017108,0.052238,95672.0,95670.0,7.591e-05]
[1732802017309,0.0760077,95671.0,95670.0,7.591e-05]
[1732802017917,0.0237697,95671.0,95670.0,7.591e-05]
[1732802018217,0.09379482,95681.0,95670.0,0.31363591]
[1732802018406,0.36140001,95690.0,95680.0,0.3608]
[1732802018407,0.001,95682.0,95680.0,0.3608]
[1732802018606,0.001,95682.0,95681.0,0.116933]
[1732802019111,0.45459482,95690.0,95681.0,0.0647]
[1732802019309,0.3608,95690.0,95688.0,0.052229]
[1732802019520,0.3608,95690.0,95681.0,0.0647]
[1732802019521,0.3608,95690.0,95681.0,0.116933]
[1732802019702,0.052233,95681.0,95680.0,0.007]
[1732802019905,0.05876635,95681.0,95680.0,0.007]
[1732802020318,0.15258906,95681.0,95680.0,0.007]
[1732802020507,0.15258906,95681.0,95680.0,0.005]
[1732802020701,0.05876635,95681.0,95680.0,0.005]
[1732802021112,0.18381266,95681.0,95680.0,0.005]
[1732802021311,0.18381266,95681.0,95670.0,7.591e-05]
[1732802021312,0.00653335,95681.0,95670.0,7.591e-05]
[1732802021610,0.09383921,95673.0,95671.0,0.052238]
[1732802021812,0.00653335,95672.0,95671.0,0.052238]
[1732802022112,0.00653335,95672.0,95670.0,0.01078928]
[1732802022313,0.3608,95682.0,95670.0,7.591e-05]
[1732802022314,0.00653335,95671.0,95670.0,7.591e-05]
[1732802022515,0.00653335,95671.0,95670.0,0.00907591]
[1732802023711,0.00653335,95671.0,95670.0,0.00407591]
[1732802023914,0.001,95672.0,95670.0,0.00407591]
[1732802024118,0.00753335,95672.0,95670.0,0.00407591]
[1732802024308,0.001,95672.0,95670.0,0.00407591]
[1732802024509,0.053238,95672.0,95670.0,0.00407591]
[1732802024813,0.00653335,95671.0,95670.0,0.00407591]
[1732802025113,0.053238,95672.0,95670.0,0.00407591]
[1732802025611,0.001,95671.0,95670.0,0.01307591]
[1732802026320,0.09481387,95671.0,95670.0,0.01307591]
[1732802026617,0.09381387,95671.0,95670.0,0.01307591]
[1732802027417,0.14705187,95672.0,95670.0,0.01307591]
[1732802027915,0.09381387,95671.0,95670.0,0.01307591]
[1732802028321,0.01535452,95671.0,95670.0,0.01307591]
[1732802028819,0.09381387,95681.0,95676.0,0.052236]
[1732802029123,0.12511894,95692.0,95691.0,0.052228]
[1732802029309,0.052226,95693.0,95691.0,0.052228]
[1732802029805,0.3608,95701.0,95685.0,0.18584267]
[1732802030215,0.00890596,95700.0,95684.0,0.35340267]
[1732802030415,0.052226,95694.0,95692.0,0.052227]
[1732802030608,0.00890596,95693.0,95692.0,0.052227]
[1732802031911,0.05223,95687.0,95686.0,0.05223]
[1732802032122,0.06113596,95687.0,95686.0,0.05223]
[1732802032414,0.00890596,95687.0,95686.0,0.05223]
[1732802033307,9.6e-07,95687.0,95686.0,0.36775]
[1732802033709,9.6e-07,95687.0,95686.0,0.37754756]
[1732802035012,9.6e-07,95687.0,95686.0,0.36775]
[1732802035820,9.6e-07,95687.0,95686.0,0.61488514]
[1732802036019,0.05222,95706.0,95705.0,0.05222]
[1732802037214,0.05422,95706.0,95705.0,0.05222]
[1732802037914,0.05422,95706.0,95705.0,0.01031666]
[1732802038109,0.17933894,95706.0,95705.0,0.01031666]
[1732802038422,0.052223,95700.0,95699.0,0.052223]
[1732802038923,0.06684078,95700.0,95699.0,0.052223]
[1732802039226,0.01461778,95700.0,95695.0,0.3608]
[1732802039528,0.052225,95696.0,95695.0,0.413025]
[1732802039715,0.06684278,95696.0,95695.0,0.413025]
[1732802039914,0.01461778,95696.0,95695.0,0.413025]
[1732802040116,0.0146946,95699.0,95695.0,0.3608]
[1732802040319,0.01469363,95698.0,95695.0,0.3608]
[1732802040628,0.01469363,95697.0,95696.0,0.052225]
[1732802042224,0.01469363,95697.0,95696.0,0.116825]
[1732802042822,0.01469363,95697.0,95696.0,0.430305]
[1732802043013,0.01469363,95697.0,95696.0,0.61597459]
[1732802043324,0.01469363,95697.0,95696.0,0.61575978]
[1732802043522,0.0143948,95697.0,95696.0,0.430305]
[1732802043915,0.0143948,95697.0,95696.0,0.431305]
[1732802044119,0.0143948,95697.0,95696.0,0.598825]
[1732802044425,0.0143948,95697.0,95696.0,0.285345]
[1732802044817,0.0143948,95697.0,95696.0,0.288345]
[1732802045213,0.0143948,95697.0,95696.0,0.24164721]
[1732802045421,0.02347031,95697.0,95696.0,0.223745]
[1732802045615,0.02359458,95701.0,95700.0,0.052223]
[1732802045816,0.02359459,95701.0,95696.0,0.17152]
[1732802046023,0.02359459,95700.0,95696.0,0.17152]
[1732802046223,0.02325653,95699.0,95696.0,0.17152]
[1732802046425,0.02325653,95698.0,95696.0,0.17152]
[1732802046627,0.052221,95703.0,95696.0,0.17152]
[1732802046928,0.02325721,95702.0,95701.0,0.052222]
[1732802047327,0.052224,95697.0,95696.0,0.055225]
[1732802047531,0.07548121,95697.0,95696.0,0.055225]
[1732802048227,0.06116908,95697.0,95696.0,0.003]
[1732802048821,0.06116908,95697.0,95695.0,0.3608]
[1732802048822,0.052225,95696.0,95695.0,0.3608]
[1732802049020,0.06117008,95696.0,95695.0,0.3608]
[1732802049326,0.052226,95694.0,95693.0,0.052226]
[1732802049525,0.42197108,95694.0,95693.0,0.052226]
[1732802051230,0.06117108,95694.0,95693.0,0.052226]
[1732802051528,0.06117108,95694.0,95683.0,0.052232]
[1732802051529,0.36974508,95694.0,95683.0,0.052232]
[1732802051732,0.13483333,95693.0,95680.0,0.3608]
[1732802051917,0.3608,95681.0,95674.0,0.052236]
[1732802052121,0.3608,95681.0,95671.0,0.00156768]
[1732802052122,0.052238,95672.0,95671.0,0.00156768]
[1732802052322,0.06118308,95672.0,95671.0,0.00156768]
[1732802052829,0.06118308,95672.0,95671.0,0.0644203]
[1732802053121,0.00894508,95672.0,95671.0,0.05380568]
[1732802053631,0.00894508,95672.0,95671.0,0.06880568]
[1732802054230,0.02313791,95672.0,95671.0,0.06880568]
[1732802054622,0.07537591,95672.0,95671.0,0.06880568]
[1732802055033,0.07537591,95672.0,95671.0,0.05980568]
[1732802055227,0.07537591,95672.0,95671.0,0.01656768]
[1732802055630,0.43617591,95672.0,95671.0,0.01656768]
[1732802056126,0.413038,95672.0,95671.0,0.01656768]
[1732802056325,0.43695007,95672.0,95671.0,0.01656768]
[1732802056628,0.75051007,95672.0,95671.0,0.01456768]
[1732802056829,0.75051007,95672.0,95671.0,0.013]
[1732802057132,0.43695007,95672.0,95671.0,0.013]
[1732802058530,0.38471207,95672.0,95671.0,0.065238]
[1732802059239,0.36999695,95672.0,95671.0,0.065238]
[1732802060029,0.00919695,95672.0,95671.0,0.065238]
[1732802060233,0.02422212,95677.0,95671.0,0.013]
[1732802060433,0.02422212,95676.0,95671.0,0.013]
[1732802060629,0.1674,95678.0,95675.0,0.052236]
[1732802060829,0.02441093,95677.0,95675.0,0.052236]
[1732802061025,0.052235,95678.0,95675.0,0.052236]
[1732802061026,0.02441093,95676.0,95675.0,0.052236]
[1732802061835,0.02441093,95676.0,95675.0,0.060236]
[1732802062331,0.02441093,95676.0,95675.0,0.052236]
[1732802062530,0.02441093,95676.0,95675.0,0.060236]
[1732802062924,0.02441093,95676.0,95675.0,0.227636]
[1732802063629,0.02441093,95676.0,95675.0,0.541196]
[1732802063934,0.02441093,95676.0,95675.0,0.544196]
[1732802064233,0.052224,95699.0,95698.0,0.052224]
[1732802065740,0.056224,95699.0,95698.0,0.052224]
[1732802065939,0.052228,95692.0,95691.0,0.052228]
[1732802066232,0.052224,95697.0,95696.0,0.052225]
[1732802066435,0.052228,95692.0,95691.0,0.052227]
[1732802066734,0.3608,95692.0,95686.0,0.01052732]
[1732802066938,0.052228,95691.0,95690.0,0.052228]
[1732802067933,0.3608,95692.0,95676.0,0.1674]
[1732802068124,0.3608,95692.0,95691.0,0.052228]
[1732802069835,0.12482074,95698.0,95691.0,0.052228]
[1732802070039,0.48562074,95701.0,95697.0,0.052224]
[1732802070247,0.3608,95701.0,95697.0,0.052224]
[1732802070741,0.3608,95701.0,95700.0,0.052223]
[1732802071037,0.052216,95712.0,95694.0,0.3608]
[1732802071038,0.12482074,95707.0,95706.0,0.052219]
[1732802071236,0.052216,95712.0,95711.0,0.052217]
[1732802072738,0.056216,95712.0,95711.0,0.052217]
[1732802073333,0.004,95712.0,95694.0,0.3608]
[1732802073534,0.12486056,95709.0,95708.0,0.052218]
[1732802073833,0.006,95712.0,95708.0,0.052218]
[1732802074029,0.006,95712.0,95711.0,0.052217]
[1732802074229,0.02046168,95712.0,95711.0,0.052217]
[1732802074436,0.07267768,95712.0,95711.0,0.052217]
[1732802074738,0.06867768,95712.0,95711.0,0.052217]
[1732802074936,0.01646168,95712.0,95694.0,0.3713343]
[1732802075243,0.12488291,95708.0,95694.0,0.3713343]
[1732802075441,0.13934459,95707.0,95706.0,0.052219]
[1732802076241,0.02375751,95707.0,95706.0,0.052219]
[1732802077144,0.00929583,95707.0,95706.0,0.052219]
[1732802077554,0.02375751,95707.0,95706.0,0.052219]
[1732802078141,0.01229583,95707.0,95706.0,0.052219]
[1732802078346,0.02960747,95707.0,95706.0,0.052219]
[1732802079541,0.02960747,95707.0,95706.0,0.06259832]
[1732802082848,0.08182647,95707.0,95706.0,0.06259832]
[1732802084356,0.08182647,95707.0,95706.0,0.01037932]
[1732802084565,0.052225,95696.0,95695.0,0.413025]
[1732802084765,0.07683247,95696.0,95695.0,0.413025]
[1732802085060,0.052222,95702.0,95700.0,0.052222]
[1732802085362,0.07647926,95701.0,95700.0,0.052223]
[1732802085861,0.052224,95698.0,95695.0,0.37206102]
[1732802086053,0.02425626,95697.0,95695.0,0.37206102]
[1732802086356,0.052224,95698.0,95695.0,0.37206102]
[1732802086357,0.02425626,95696.0,95695.0,0.42428602]
[1732802087459,0.02425626,95696.0,95695.0,0.42328602]
[1732802087761,0.02425626,95696.0,95695.0,0.42628602]
[1732802088561,0.14908142,95696.0,95695.0,0.42728602]
[1732802088760,0.14908142,95696.0,95695.0,0.42528602]
[1732802089149,0.14908142,95696.0,95695.0,0.42428602]
[1732802089351,0.02425626,95696.0,95695.0,0.42428602]
[1732802090152,0.04548026,95697.0,95695.0,0.37206102]
[1732802090451,0.04548026,95697.0,95696.0,0.052225]
[1732802092255,0.04648026,95697.0,95696.0,0.052225]
[1732802092959,0.001,95697.0,95695.0,0.37106102]
[1732802093158,0.052225,95696.0,95695.0,0.37106102]
[1732802093361,0.052225,95696.0,95695.0,0.42328602]
[1732802094152,0.17729936,95696.0,95695.0,0.01026102]
[1732802094358,0.052233,95683.0,95682.0,0.052232]
[1732802095370,0.052236,95676.0,95674.0,0.052237]
[1732802095555,0.052236,95676.0,95672.0,0.01047776]
[1732802095756,0.052236,95676.0,95675.0,0.052236]
[1732802096953,0.413036,95676.0,95675.0,0.01075165]
[1732802097165,0.052238,95672.0,95671.0,0.052238]
[1732802098161,0.3608,95676.0,95675.0,0.059236]
[1732802098162,0.413036,95676.0,95675.0,0.059236]
[1732802098663,0.413036,95676.0,95675.0,0.052236]
[1732802099464,0.413036,95676.0,95675.0,0.059236]
[1732802100959,0.413036,95676.0,95675.0,0.062236]
[1732802101164,0.12114517,95682.0,95675.0,0.590236]
[1732802101368,0.3608,95706.0,95677.0,0.052235]
[1732802101667,0.052224,95699.0,95698.0,0.052224]
[1732802102264,0.00873727,95699.0,95698.0,0.052224]
[1732802102571,0.02316785,95699.0,95698.0,0.052224]
[1732802103277,0.02416785,95699.0,95698.0,0.052224]
[1732802103665,0.01543058,95699.0,95698.0,0.052224]
[1732802103965,0.02497703,95699.0,95698.0,0.085324]